[Event "The Kvibergspelen 2023"]
[Site "Kviberg Park Hotel & Conference, Krutvagen 2, Gothenburg, Sweden"]
[Date "2023.09.15"]
[Round "2.19"]
[White "Wiklund, Johan"]
[Black "Nygren, Kim"]
[Result "0-1"]
[TimeControl "15 minutes + 5 seconds per move from move one (Round 1 - 4) / 90 minutes + 30 seconds per move from move one (Round 5 - 8)"]
[BlackTitle "CM"]
[WhiteFideId "1713817"]
[BlackFideId "1706136"]
[WhiteElo "1915"]
[BlackElo "2171"]

1. Nf3 {[%clk 00:15:08]} Nf6 {[%clk 00:15:04]} {[%emt 00:00:07]} 2. c4 {[%clk
00:15:11]} {[%emt 00:00:02]} e6 {[%clk 00:14:41]} {[%emt 00:00:27]} 3. Nc3
{[%clk 00:15:07]} {[%emt 00:00:09]} d5 {[%clk 00:14:43]} {[%emt 00:00:03]} 4.
d4 {[%clk 00:15:10]} {[%emt 00:00:02]} c6 {[%clk 00:14:28]} {[%emt 00:00:20]} 5.
cxd5 {[%clk 00:15:10]} {[%emt 00:00:05]} exd5 {[%clk 00:14:31]} {[%emt
00:00:02]} 6. Qc2 {[%clk 00:15:07]} {[%emt 00:00:08]} Bb4 {[%clk 00:14:24]}
{[%emt 00:00:12]} 7. Bg5 {[%clk 00:15:05]} {[%emt 00:00:07]} Nbd7 {[%clk
00:13:52]} {[%emt 00:00:37]} 8. Nd2 {[%clk 00:13:51]} {[%emt 00:01:18]} O-O
{[%clk 00:13:29]} {[%emt 00:00:29]} 9. e3 {[%clk 00:13:52]} {[%emt 00:00:03]}
h6 {[%clk 00:12:57]} {[%emt 00:00:37]} 10. Bh4 {[%clk 00:13:54]} {[%emt
00:00:03]} Re8 {[%clk 00:11:59]} {[%emt 00:01:05]} 11. Bd3 {[%clk 00:13:53]}
{[%emt 00:00:04]} Nf8 {[%clk 00:11:39]} {[%emt 00:00:26]} 12. O-O {[%clk
00:13:36]} {[%emt 00:00:22]} Bd6 {[%clk 00:11:33]} {[%emt 00:00:11]} 13. Rfe1
{[%clk 00:12:53]} {[%emt 00:00:48]} Bxh2+ {[%clk 00:10:08]} {[%emt 00:01:30]}
14. Kh1 {[%clk 00:10:54]} {[%emt 00:02:03]} g5 {[%clk 00:09:15]} {[%emt
00:00:58]} 15. Kxh2 {[%clk 00:10:35]} {[%emt 00:00:24]} Ng4+ {[%clk 00:08:25]}
{[%emt 00:00:57]} 16. Kg1 {[%clk 00:10:13]} {[%emt 00:00:26]} gxh4 {[%clk
00:08:27]} {[%emt 00:00:03]} 17. Nf3 {[%clk 00:09:20]} {[%emt 00:00:57]} Qf6
{[%clk 00:07:59]} {[%emt 00:00:33]} 18. e4 {[%clk 00:07:49]} {[%emt 00:01:37]}
h3 {[%clk 00:07:27]} 19. e5 {[%clk 00:07:21]} {[%emt 00:01:10]} Qf4 {[%clk
00:04:41]} 20. Ne2 {[%clk 00:06:29]} {[%emt 00:03:47]} h2+ {[%clk 00:04:36]}
{[%emt 00:00:10]} 21. Nxh2 {[%clk 00:05:57]} {[%emt 00:00:37]} Qxh2+ {[%clk
00:04:36]} {[%emt 00:00:06]} 22. Kf1 {[%clk 00:06:00]} {[%emt 00:00:02]} Qh4
{[%clk 00:03:39]} {[%emt 00:01:03]} 23. Ng1 {[%clk 00:05:01]} {[%emt 00:01:02]}
Ne6 {[%clk 00:03:15]} {[%emt 00:00:29]} 24. Red1 {[%clk 00:03:57]} {[%emt
00:01:09]} Bd7 {[%clk 00:02:19]} {[%emt 00:01:02]} 25. Qc3 {[%clk 00:02:51]}
{[%emt 00:01:09]} 0-1

[Event "The Kvibergspelen 2023"]
[Site "Kviberg Park Hotel & Conference, Krutvagen 2, Gothenburg, Sweden"]
[Date "2023.09.15"]
[Round "2.20"]
[White "Frisk, Ellinor"]
[Black "Stenman, Christoffer"]
[Result "1-0"]
[TimeControl "15 minutes + 5 seconds per move from move one (Round 1 - 4) / 90 minutes + 30 seconds per move from move one (Round 5 - 8)"]
[WhiteTitle "WIM"]
[WhiteFideId "1708481"]
[BlackFideId "1713604"]
[WhiteElo "2166"]
[BlackElo "1896"]

1. c4 {[%clk 00:15:08]} {[%emt 00:00:02]} e5 {[%clk 00:15:06]} {[%emt
00:00:06]} 2. e3 {[%clk 00:15:08]} {[%emt 00:00:01]} Nf6 {[%clk 00:14:45]}
{[%emt 00:00:27]} 3. Nc3 {[%clk 00:14:45]} {[%emt 00:00:28]} Nc6 {[%clk
00:13:30]} {[%emt 00:01:20]} 4. Nf3 {[%clk 00:14:48]} {[%emt 00:00:02]} d5
{[%clk 00:13:04]} {[%emt 00:00:31]} 5. cxd5 {[%clk 00:14:51]} {[%emt 00:00:03]}
Nxd5 {[%clk 00:13:07]} {[%emt 00:00:01]} 6. Bb5 {[%clk 00:14:54]} {[%emt
00:00:03]} Nxc3 {[%clk 00:11:38]} {[%emt 00:01:34]} 7. bxc3 {[%clk 00:14:57]}
{[%emt 00:00:01]} Bd6 {[%clk 00:10:58]} {[%emt 00:00:44]} 8. d4 {[%clk
00:14:50]} {[%emt 00:00:14]} exd4 {[%clk 00:10:55]} {[%emt 00:00:07]} 9. cxd4
{[%clk 00:14:48]} {[%emt 00:00:08]} O-O {[%clk 00:09:50]} {[%emt 00:01:09]} 10.
O-O {[%clk 00:14:41]} {[%emt 00:00:12]} Bf5 {[%clk 00:07:53]} {[%emt 00:02:02]}
11. Bb2 {[%clk 00:14:03]} {[%emt 00:00:42]} Ne7 {[%clk 00:06:43]} {[%emt
00:01:15]} 12. Bd3 {[%clk 00:12:22]} {[%emt 00:01:46]} Re8 {[%clk 00:04:40]}
{[%emt 00:02:08]} 13. e4 {[%clk 00:11:35]} {[%emt 00:00:53]} Bg4 {[%clk
00:04:40]} {[%emt 00:00:05]} 14. e5 {[%clk 00:11:12]} {[%emt 00:00:28]} Bxf3
{[%clk 00:04:24]} {[%emt 00:00:21]} 15. Qxf3 {[%clk 00:10:43]} {[%emt
00:00:34]} Bb4 {[%clk 00:04:22]} {[%emt 00:00:07]} 16. Bc4 {[%clk 00:08:12]}
{[%emt 00:02:36]} Rf8 {[%clk 00:04:00]} {[%emt 00:00:27]} 17. Qxb7 {[%clk
00:07:23]} {[%emt 00:00:54]} Ba5 {[%clk 00:03:16]} {[%emt 00:00:48]} 18. Qe4
{[%clk 00:07:05]} {[%emt 00:00:24]} Rb8 {[%clk 00:02:39]} {[%emt 00:00:42]} 19.
Rab1 {[%clk 00:06:59]} {[%emt 00:00:12]} c6 {[%clk 00:01:38]} {[%emt 00:01:06]}
20. Ba3 {[%clk 00:06:27]} {[%emt 00:00:36]} Rxb1 {[%clk 00:01:39]} {[%emt
00:00:04]} 21. Rxb1 {[%clk 00:06:30]} {[%emt 00:00:02]} Qd7 {[%clk 00:01:16]}
{[%emt 00:00:28]} 22. e6 {[%clk 00:05:21]} {[%emt 00:01:14]} 1-0

[Event "The Kvibergspelen 2023"]
[Site "Kviberg Park Hotel & Conference, Krutvagen 2, Gothenburg, Sweden"]
[Date "2023.09.15"]
[Round "3.1"]
[White "Cederstam, Carl"]
[Black "Hansen, Sune Berg"]
[Result "1-0"]
[TimeControl "15 minutes + 5 seconds per move from move one (Round 1 - 4) / 90 minutes + 30 seconds per move from move one (Round 5 - 8)"]
[WhiteTitle "FM"]
[BlackTitle "GM"]
[WhiteFideId "1713329"]
[BlackFideId "1400266"]
[WhiteElo "2232"]
[BlackElo "2512"]

1. c4 {[%clk 00:12:39]} {[%emt 00:02:30]} e5 {[%clk 00:14:49]} {[%emt
00:00:21]} 2. g3 {[%clk 00:12:39]} {[%emt 00:00:05]} Nc6 {[%clk 00:14:28]}
{[%emt 00:00:26]} 3. Bg2 {[%clk 00:12:29]} {[%emt 00:00:15]} Bc5 {[%clk
00:14:26]} {[%emt 00:00:07]} 4. Nc3 {[%clk 00:12:07]} {[%emt 00:00:28]} a6
{[%clk 00:14:22]} {[%emt 00:00:09]} 5. e3 {[%clk 00:10:53]} {[%emt 00:01:19]}
Nge7 {[%clk 00:14:00]} {[%emt 00:00:26]} 6. Nf3 {[%clk 00:09:50]} {[%emt
00:01:08]} Ba7 {[%clk 00:13:43]} {[%emt 00:00:22]} 7. O-O {[%clk 00:09:44]}
{[%emt 00:00:11]} d6 {[%clk 00:13:29]} {[%emt 00:00:19]} 8. h3 {[%clk
00:08:46]} {[%emt 00:01:03]} O-O {[%clk 00:11:06]} {[%emt 00:02:28]} 9. d4
{[%clk 00:08:09]} {[%emt 00:00:42]} Bd7 {[%clk 00:10:21]} {[%emt 00:00:51]} 10.
dxe5 {[%clk 00:07:52]} {[%emt 00:00:22]} dxe5 {[%clk 00:10:18]} {[%emt
00:00:07]} 11. b3 {[%clk 00:07:52]} {[%emt 00:00:07]} Ng6 {[%clk 00:08:58]}
{[%emt 00:01:24]} 12. Ba3 {[%clk 00:07:35]} {[%emt 00:00:20]} Re8 {[%clk
00:09:01]} {[%emt 00:00:04]} 13. Ne4 {[%clk 00:05:54]} {[%emt 00:01:45]} Bf5
{[%clk 00:08:17]} {[%emt 00:00:50]} 14. Qc2 {[%clk 00:05:26]} {[%emt 00:00:33]}
h5 {[%clk 00:07:52]} {[%emt 00:00:29]} 15. Rad1 {[%clk 00:05:08]} {[%emt
00:00:24]} Qc8 {[%clk 00:07:55]} 16. Kh2 {[%clk 00:05:02]} {[%emt 00:00:11]} a5
{[%clk 00:07:46]} {[%emt 00:00:14]} 17. Nh4 {[%clk 00:03:38]} {[%emt 00:01:30]}
Nxh4 {[%clk 00:07:42]} {[%emt 00:00:08]} 18. gxh4 {[%clk 00:03:41]} {[%emt
00:00:03]} Nb4 {[%clk 00:06:19]} {[%emt 00:01:28]} 19. Qe2 {[%clk 00:03:37]}
{[%emt 00:00:07]} Bg6 {[%clk 00:06:20]} {[%emt 00:00:04]} 20. Rg1 {[%clk
00:03:12]} {[%emt 00:00:31]} Rd8 {[%clk 00:06:14]} {[%emt 00:00:11]} 21. Rxd8+
{[%clk 00:02:01]} {[%emt 00:01:16]} Qxd8 {[%clk 00:06:17]} {[%emt 00:00:02]} 22.
Ng5 {[%clk 00:01:22]} {[%emt 00:00:44]} c6 {[%clk 00:05:28]} {[%emt 00:00:54]}
23. Bf3 {[%clk 00:00:51]} {[%emt 00:00:36]} Qf6 {[%clk 00:04:16]} {[%emt
00:01:17]} 24. Bxh5 {[%clk 00:00:48]} {[%emt 00:00:09]} Bxh5 {[%clk 00:03:51]}
{[%emt 00:00:30]} 25. Qxh5 {[%clk 00:00:51]} {[%emt 00:00:01]} Qxf2+ {[%clk
00:03:52]} {[%emt 00:00:04]} 26. Rg2 {[%clk 00:00:52]} {[%emt 00:00:05]} Qf5
{[%clk 00:03:55]} {[%emt 00:00:02]} 27. Bc1 {[%clk 00:00:36]} {[%emt 00:00:20]}
e4 {[%clk 00:03:12]} {[%emt 00:00:49]} 28. Bb2 {[%clk 00:00:39]} {[%emt
00:00:02]} Rd8 {[%clk 00:03:16]} {[%emt 00:00:01]} 29. Bxg7 {[%clk 00:00:26]}
{[%emt 00:00:17]} Bb8+ {[%clk 00:03:02]} {[%emt 00:00:20]} 30. Kg1 {[%clk
00:00:30]} Qg6 {[%clk 00:02:43]} {[%emt 00:00:25]} 31. Qh8# {[%emt 00:00:01]}
Qf5 {[%emt 00:00:10]} 32. Qh5 {[%clk 00:00:18]} 1-0

[Event "The Kvibergspelen 2023"]
[Site "Kviberg Park Hotel & Conference, Krutvagen 2, Gothenburg, Sweden"]
[Date "2023.09.15"]
[Round "3.2"]
[White "Holm, Kristian Stuvik"]
[Black "Hansen, Lars"]
[Result "1-0"]
[TimeControl "15 minutes + 5 seconds per move from move one (Round 1 - 4) / 90 minutes + 30 seconds per move from move one (Round 5 - 8)"]
[WhiteTitle "IM"]
[WhiteFideId "1508083"]
[BlackFideId "1402528"]
[WhiteElo "2488"]
[BlackElo "2188"]

1. d4 {[%clk 00:14:58]} {[%emt 00:00:13]} e6 {[%clk 00:15:07]} {[%emt
00:00:02]} 2. c4 {[%clk 00:14:57]} {[%emt 00:00:03]} b6 {[%clk 00:15:08]}
{[%emt 00:00:05]} 3. a3 {[%clk 00:14:50]} {[%emt 00:00:14]} Bb7 {[%clk
00:15:01]} {[%emt 00:00:13]} 4. Nc3 {[%clk 00:14:52]} {[%emt 00:00:01]} Nf6
{[%clk 00:14:52]} {[%emt 00:00:14]} 5. Nf3 {[%clk 00:14:42]} {[%emt 00:00:16]}
d5 {[%clk 00:14:51]} {[%emt 00:00:07]} 6. Qa4+ {[%clk 00:14:04]} {[%emt
00:00:43]} Nbd7 {[%clk 00:14:03]} {[%emt 00:00:53]} 7. Ne5 {[%clk 00:12:44]}
{[%emt 00:01:24]} Bd6 {[%clk 00:12:06]} {[%emt 00:02:03]} 8. cxd5 {[%clk
00:08:45]} {[%emt 00:04:03]} exd5 {[%clk 00:09:19]} {[%emt 00:02:53]} 9. Bg5
{[%clk 00:07:58]} {[%emt 00:00:52]} Bxe5 {[%clk 00:03:20]} {[%emt 00:06:02]} 10.
dxe5 {[%clk 00:07:58]} {[%emt 00:00:07]} h6 {[%clk 00:03:25]} 11. exf6 {[%clk
00:06:30]} {[%emt 00:01:34]} hxg5 {[%clk 00:03:27]} {[%emt 00:00:03]} 12. fxg7
{[%clk 00:06:33]} {[%emt 00:00:01]} Rg8 {[%clk 00:03:28]} {[%emt 00:00:03]} 13.
O-O-O {[%clk 00:04:42]} {[%emt 00:01:56]} c6 {[%clk 00:03:31]} {[%emt
00:00:02]} 14. e4 {[%clk 00:03:58]} {[%emt 00:00:50]} Nc5 {[%clk 00:03:07]}
{[%emt 00:00:29]} 15. Qc2 {[%clk 00:04:01]} {[%emt 00:00:02]} d4 {[%clk
00:02:19]} {[%emt 00:00:52]} 16. e5 {[%clk 00:02:58]} {[%emt 00:01:08]} Rxg7
{[%clk 00:02:05]} {[%emt 00:00:19]} 17. b4 {[%clk 00:02:12]} {[%emt 00:00:52]}
Ne6 {[%clk 00:01:39]} {[%emt 00:00:31]} 18. Ne4 {[%clk 00:02:15]} {[%emt
00:00:01]} Kf8 {[%clk 00:01:24]} {[%emt 00:00:21]} 19. Nd6 {[%clk 00:01:58]}
{[%emt 00:00:22]} Qc7 {[%clk 00:01:08]} {[%emt 00:00:21]} 20. h4 {[%clk
00:01:41]} {[%emt 00:00:21]} a5 {[%clk 00:00:39]} {[%emt 00:00:34]} 21. hxg5
{[%clk 00:01:13]} {[%emt 00:00:33]} axb4 {[%clk 00:00:39]} {[%emt 00:00:06]} 22.
Rh8+ {[%clk 00:01:16]} {[%emt 00:00:01]} Rg8 {[%clk 00:00:37]} {[%emt
00:00:08]} 23. Qh7 {[%clk 00:01:06]} {[%emt 00:00:15]} Rxh8 24. Qxh8+ {[%clk
00:01:10]} Ke7 {[%clk 00:00:32]} {[%emt 00:00:02]} 25. Qf6+ {[%clk 00:01:11]}
{[%emt 00:00:04]} Kf8 {[%clk 00:00:30]} {[%emt 00:00:07]} 26. Bc4 {[%clk
00:00:54]} {[%emt 00:00:21]} bxa3 {[%clk 00:00:12]} {[%emt 00:00:24]} 27. Bxe6
{[%clk 00:00:42]} {[%emt 00:00:17]} a2 {[%clk 00:00:15]} {[%emt 00:00:02]} 28.
Qh8+ {[%clk 00:00:41]} {[%emt 00:00:05]} Ke7 {[%clk 00:00:19]} {[%emt
00:00:04]} 29. Qf6+ {[%clk 00:00:23]} {[%emt 00:00:24]} Kf8 {[%clk 00:00:21]}
{[%emt 00:00:02]} 30. Kb2 {[%clk 00:00:19]} {[%emt 00:00:09]} b5 {[%clk
00:00:11]} {[%emt 00:00:14]} 31. Qh8+ {[%clk 00:00:19]} {[%emt 00:00:07]} Ke7
{[%clk 00:00:14]} 32. Qf6+ {[%clk 00:00:20]} {[%emt 00:00:02]} Kf8 {[%clk
00:00:19]} {[%emt 00:00:04]} 33. Bxf7 {[%clk 00:00:12]} {[%emt 00:00:14]} a1=Q+
{[%clk 00:00:14]} {[%emt 00:00:18]} 34. Rxa1 {[%clk 00:00:16]} {[%emt
00:00:01]} Rxa1 {[%clk 00:00:14]} {[%emt 00:00:15]} 35. Kxa1 {[%clk 00:00:20]}
1-0

[Event "The Kvibergspelen 2023"]
[Site "Kviberg Park Hotel & Conference, Krutvagen 2, Gothenburg, Sweden"]
[Date "2023.09.15"]
[Round "3.3"]
[White "Nygren, Kim"]
[Black "Larkin, Vladyslav"]
[Result "0-1"]
[TimeControl "15 minutes + 5 seconds per move from move one (Round 1 - 4) / 90 minutes + 30 seconds per move from move one (Round 5 - 8)"]
[WhiteTitle "CM"]
[BlackTitle "IM"]
[WhiteFideId "1706136"]
[BlackFideId "14152894"]
[WhiteElo "2171"]
[BlackElo "2464"]

1. e4 {[%clk 00:15:07]} {[%emt 00:00:03]} c5 {[%clk 00:13:45]} {[%emt
00:01:25]} 2. Nf3 {[%clk 00:15:09]} {[%emt 00:00:03]} e6 {[%clk 00:13:48]}
{[%emt 00:00:02]} 3. d4 {[%clk 00:15:07]} {[%emt 00:00:08]} cxd4 {[%clk
00:13:51]} {[%emt 00:00:01]} 4. Nxd4 {[%clk 00:15:11]} {[%emt 00:00:02]} a6
{[%clk 00:13:55]} {[%emt 00:00:01]} 5. Nc3 {[%clk 00:15:04]} {[%emt 00:00:12]}
Qc7 {[%clk 00:13:58]} {[%emt 00:00:02]} 6. Be3 {[%clk 00:14:15]} {[%emt
00:00:53]} Nf6 {[%clk 00:14:00]} {[%emt 00:00:03]} 7. Be2 {[%clk 00:13:02]}
{[%emt 00:01:18]} b5 {[%clk 00:13:54]} {[%emt 00:00:12]} 8. O-O {[%clk
00:12:12]} {[%emt 00:00:55]} Bb7 {[%clk 00:13:57]} {[%emt 00:00:02]} 9. Bf3
{[%clk 00:11:12]} {[%emt 00:01:05]} b4 {[%clk 00:13:28]} {[%emt 00:00:34]} 10.
e5 {[%clk 00:10:40]} {[%emt 00:00:36]} bxc3 {[%clk 00:13:27]} {[%emt 00:00:06]}
11. exf6 {[%clk 00:09:16]} {[%emt 00:01:29]} gxf6 {[%clk 00:13:03]} {[%emt
00:00:29]} 12. bxc3 {[%clk 00:09:05]} {[%emt 00:00:17]} Nc6 {[%clk 00:11:16]}
{[%emt 00:01:52]} 13. Rb1 {[%clk 00:08:33]} {[%emt 00:00:36]} Rc8 {[%clk
00:11:20]} {[%emt 00:00:01]} 14. Re1 {[%clk 00:07:57]} {[%emt 00:00:42]} Rg8
{[%clk 00:10:25]} {[%emt 00:01:00]} 15. Nf5 {[%clk 00:04:57]} {[%emt 00:03:04]}
Ba8 {[%clk 00:09:51]} {[%emt 00:00:40]} 16. Bb6 {[%clk 00:03:52]} {[%emt
00:01:11]} Qf4 {[%clk 00:09:47]} {[%emt 00:00:08]} 17. Ng3 {[%clk 00:03:49]}
{[%emt 00:00:06]} Be7 {[%clk 00:07:15]} {[%emt 00:02:38]} 18. Qe2 {[%clk
00:03:16]} {[%emt 00:00:38]} Qa4 {[%clk 00:06:18]} {[%emt 00:01:03]} 19. Nf5
{[%clk 00:02:59]} {[%emt 00:00:21]} Bf8 {[%clk 00:05:25]} {[%emt 00:00:58]} 20.
c4 {[%clk 00:02:07]} {[%emt 00:00:57]} Ne5 {[%clk 00:05:09]} {[%emt 00:00:21]}
21. Bxa8 {[%clk 00:02:03]} {[%emt 00:00:10]} Rxa8 {[%clk 00:05:12]} {[%emt
00:00:02]} 22. Ne3 {[%clk 00:01:49]} {[%emt 00:00:18]} Qc6 {[%clk 00:05:08]}
{[%emt 00:00:09]} 23. Kh1 {[%clk 00:01:38]} {[%emt 00:00:16]} Bh6 {[%clk
00:04:30]} {[%emt 00:00:43]} 24. Bd4 {[%clk 00:01:15]} {[%emt 00:00:28]} Bxe3
{[%clk 00:04:09]} {[%emt 00:00:27]} 25. fxe3 {[%clk 00:01:18]} {[%emt
00:00:02]} Nxc4 {[%clk 00:03:21]} {[%emt 00:00:53]} 26. Rg1 {[%clk 00:00:45]}
{[%emt 00:00:37]} e5 {[%clk 00:02:54]} {[%emt 00:00:33]} 27. Rb4 {[%clk
00:00:37]} {[%emt 00:00:12]} Rc8 {[%clk 00:02:54]} {[%emt 00:00:06]} 28. Ba1
{[%clk 00:00:28]} {[%emt 00:00:15]} a5 {[%clk 00:02:47]} {[%emt 00:00:11]} 29.
Rb3 {[%clk 00:00:29]} {[%emt 00:00:03]} Qe4 {[%clk 00:02:19]} {[%emt 00:00:33]}
30. Qf2 {[%clk 00:00:20]} {[%emt 00:00:15]} Rg6 {[%clk 00:01:58]} {[%emt
00:00:26]} 31. Rd3 {[%clk 00:00:23]} {[%emt 00:00:03]} d6 {[%clk 00:01:51]}
{[%emt 00:00:11]} 32. Rgd1 {[%clk 00:00:12]} {[%emt 00:00:15]} Ke7 {[%clk
00:01:45]} {[%emt 00:00:11]} 33. Qe2 {[%clk 00:00:07]} {[%emt 00:00:10]} Rcg8
{[%clk 00:01:43]} {[%emt 00:00:08]} 34. Rg1 {[%clk 00:00:09]} {[%emt 00:00:02]}
h5 {[%clk 00:01:27]} {[%emt 00:00:25]} 35. Rc3 {[%clk 00:00:13]} d5 {[%clk
00:01:29]} {[%emt 00:00:02]} 36. Rb3 {[%clk 00:00:17]} {[%emt 00:00:01]} h4
{[%clk 00:01:23]} {[%emt 00:00:10]} 37. Rb7+ {[%clk 00:00:21]} Ke6 {[%clk
00:01:24]} {[%emt 00:00:06]} 38. h3 {[%clk 00:00:12]} {[%emt 00:00:13]} Rg3
{[%clk 00:01:26]} {[%emt 00:00:02]} 39. Kh2 {[%clk 00:00:12]} {[%emt 00:00:07]}
Qxe3 {[%clk 00:00:59]} {[%emt 00:00:44]} 40. Qf1 {[%clk 00:00:09]} {[%emt
00:00:17]} Nd2 {[%clk 00:00:34]} {[%emt 00:00:47]} 41. Qa6+ {[%clk 00:00:09]}
{[%emt 00:00:03]} Kf5 {[%clk 00:00:38]} {[%emt 00:00:01]} 42. Rf1+ {[%clk
00:00:07]} {[%emt 00:00:27]} Nxf1+ {[%clk 00:00:40]} {[%emt 00:00:04]} 43.
Qxf1+ {[%clk 00:00:10]} {[%emt 00:00:01]} Qf4 {[%clk 00:00:40]} {[%emt
00:00:09]} 0-1

[Event "The Kvibergspelen 2023"]
[Site "Kviberg Park Hotel & Conference, Krutvagen 2, Gothenburg, Sweden"]
[Date "2023.09.15"]
[Round "3.4"]
[White "Seo, Jung Min"]
[Black "Frisk, Ellinor"]
[Result "1-0"]
[TimeControl "15 minutes + 5 seconds per move from move one (Round 1 - 4) / 90 minutes + 30 seconds per move from move one (Round 5 - 8)"]
[WhiteTitle "IM"]
[BlackTitle "WIM"]
[WhiteFideId "1734687"]
[BlackFideId "1708481"]
[WhiteElo "2462"]
[BlackElo "2166"]

1. d4 {[%clk 00:15:09]} Nf6 {[%clk 00:15:07]} {[%emt 00:00:04]} 2. c4 {[%clk
00:15:14]} c5 {[%clk 00:15:11]} {[%emt 00:00:02]} 3. d5 {[%clk 00:15:18]} b5
{[%clk 00:15:05]} {[%emt 00:00:11]} 4. cxb5 {[%clk 00:15:22]} {[%emt 00:00:01]}
a6 {[%clk 00:15:02]} {[%emt 00:00:09]} 5. bxa6 {[%clk 00:14:51]} {[%emt
00:00:35]} g6 {[%clk 00:14:50]} {[%emt 00:00:17]} 6. Nc3 {[%clk 00:14:54]}
{[%emt 00:00:02]} Bg7 {[%clk 00:14:54]} {[%emt 00:00:01]} 7. a7 {[%clk
00:13:58]} {[%emt 00:01:02]} Rxa7 {[%clk 00:14:09]} {[%emt 00:00:49]} 8. e4
{[%clk 00:13:59]} {[%emt 00:00:03]} O-O {[%clk 00:14:04]} {[%emt 00:00:10]} 9.
Nf3 {[%clk 00:13:32]} {[%emt 00:00:32]} d6 {[%clk 00:12:36]} {[%emt 00:01:33]}
10. Be2 {[%clk 00:13:34]} {[%emt 00:00:03]} Na6 {[%clk 00:12:27]} {[%emt
00:00:15]} 11. O-O {[%clk 00:13:34]} {[%emt 00:00:04]} Nd7 {[%clk 00:11:42]}
{[%emt 00:00:50]} 12. Re1 {[%clk 00:13:03]} {[%emt 00:00:36]} Ne5 {[%clk
00:11:41]} {[%emt 00:00:07]} 13. Bf4 {[%clk 00:12:51]} {[%emt 00:00:16]} Bg4
{[%clk 00:09:41]} {[%emt 00:02:05]} 14. Nxe5 {[%clk 00:12:39]} {[%emt
00:00:18]} Bxe2 {[%clk 00:09:44]} 15. Qxe2 {[%clk 00:12:39]} {[%emt 00:00:05]}
Bxe5 {[%clk 00:09:24]} {[%emt 00:00:26]} 16. Bxe5 {[%clk 00:12:43]} {[%emt
00:00:01]} dxe5 {[%clk 00:09:28]} {[%emt 00:00:01]} 17. Rad1 {[%clk 00:12:22]}
{[%emt 00:00:25]} Nc7 {[%clk 00:07:44]} {[%emt 00:01:50]} 18. Qc4 {[%clk
00:11:28]} {[%emt 00:00:57]} Qd6 {[%clk 00:07:31]} {[%emt 00:00:19]} 19. b3
{[%clk 00:08:55]} {[%emt 00:02:38]} Rb8 {[%clk 00:07:28]} {[%emt 00:00:08]} 20.
h4 {[%clk 00:08:31]} {[%emt 00:00:29]} Rb4 {[%clk 00:06:57]} {[%emt 00:00:36]}
21. Qe2 {[%clk 00:08:34]} {[%emt 00:00:01]} h5 {[%clk 00:06:20]} {[%emt
00:00:43]} 22. Rc1 {[%clk 00:08:16]} {[%emt 00:00:21]} Rab7 {[%clk 00:06:04]}
{[%emt 00:00:22]} 23. Na4 {[%clk 00:07:37]} {[%emt 00:00:44]} Na6 {[%clk
00:05:31]} {[%emt 00:00:39]} 24. Rc2 {[%clk 00:07:11]} {[%emt 00:00:30]} R7b5
{[%clk 00:04:59]} {[%emt 00:00:37]} 25. Rec1 {[%clk 00:07:03]} {[%emt
00:00:13]} Kg7 {[%clk 00:04:52]} {[%emt 00:00:13]} 26. g3 {[%clk 00:06:33]}
{[%emt 00:00:34]} Ra5 {[%clk 00:04:17]} {[%emt 00:00:40]} 27. Rc4 {[%clk
00:06:30]} {[%emt 00:00:07]} Rab5 {[%clk 00:04:15]} {[%emt 00:00:09]} 28. Nb2
{[%clk 00:05:13]} {[%emt 00:01:21]} Rb8 {[%clk 00:04:09]} {[%emt 00:00:10]} 29.
Nd3 {[%clk 00:05:13]} {[%emt 00:00:07]} Rxc4 {[%clk 00:04:11]} {[%emt
00:00:03]} 30. Rxc4 {[%clk 00:05:17]} {[%emt 00:00:01]} f6 {[%clk 00:03:57]}
{[%emt 00:00:19]} 31. Qc2 {[%clk 00:04:45]} {[%emt 00:00:36]} Nb4 {[%clk
00:03:51]} {[%emt 00:00:12]} 32. Nxb4 {[%clk 00:04:27]} {[%emt 00:00:22]} cxb4
{[%clk 00:03:42]} {[%emt 00:00:15]} 33. Rc6 {[%clk 00:04:28]} {[%emt 00:00:04]}
Qd8 {[%clk 00:03:40]} {[%emt 00:00:06]} 34. Qc5 {[%clk 00:04:27]} {[%emt
00:00:06]} Rb7 {[%clk 00:03:27]} {[%emt 00:00:18]} 35. Kg2 {[%clk 00:04:03]}
{[%emt 00:00:30]} Qd7 {[%clk 00:03:31]} 36. Rb6 {[%clk 00:02:37]} {[%emt
00:01:29]} Rc7 {[%clk 00:01:58]} {[%emt 00:01:40]} 37. Qxb4 {[%clk 00:02:17]}
{[%emt 00:00:25]} Qg4 {[%clk 00:02:01]} {[%emt 00:00:01]} 38. Rc6 {[%clk
00:02:13]} {[%emt 00:00:09]} Ra7 {[%clk 00:01:53]} {[%emt 00:00:13]} 39. a4
{[%clk 00:02:05]} {[%emt 00:00:13]} g5 {[%clk 00:01:41]} {[%emt 00:00:18]} 40.
f3 {[%clk 00:01:55]} {[%emt 00:00:16]} Qd7 {[%clk 00:01:45]} 41. hxg5 {[%clk
00:01:56]} {[%emt 00:00:04]} f5 {[%clk 00:00:32]} {[%emt 00:01:21]} 42. Qc3
{[%clk 00:01:53]} {[%emt 00:00:05]} fxe4 {[%clk 00:00:25]} {[%emt 00:00:11]} 43.
Qxe5+ {[%clk 00:01:53]} {[%emt 00:00:06]} Kf7 {[%clk 00:00:25]} {[%emt
00:00:06]} 44. Qxe4 {[%clk 00:01:48]} {[%emt 00:00:14]} Rb7 {[%clk 00:00:25]}
{[%emt 00:00:04]} 45. Qh7+ {[%clk 00:01:41]} {[%emt 00:00:13]} Kf8 {[%clk
00:00:26]} {[%emt 00:00:14]} 46. Qh8+ {[%clk 00:01:40]} {[%emt 00:00:15]} Kf7
{[%clk 00:00:30]} {[%emt 00:00:01]} 47. Qxh5+ {[%clk 00:01:39]} {[%emt
00:00:09]} Kg7 {[%clk 00:00:28]} {[%emt 00:00:12]} 48. Rg6+ {[%clk 00:01:34]}
{[%emt 00:00:15]} Kf7 {[%clk 00:00:32]} 49. Rd6+ {[%clk 00:01:20]} {[%emt
00:00:29]} 1-0